bitfinex/quotes_SOLUSD_20240829
["timestamp","ask_amount","ask_price","bid_price","bid_amount"]
[1724909267361,6.9319,144.26,144.22,6.9338]
[1724909268883,6.9327,144.25,144.19,12.93330389]
[1724909269178,6.9327,144.25,144.21,6.9342]
[1724909269955,6.9327,144.25,144.2,6.9346]
[1724909272376,6.9327,144.25,144.21,6.9342]
[1724909273286,6.9327,144.25,144.2,6.9346]
[1724909275490,6.9328,144.24,144.2,6.9346]
[1724909279894,6.9328,144.24,144.17,28.14520389]
[1724909283894,1.20865757,144.26,144.19,12.93330389]
[1724909284098,1.20865757,144.26,144.22,6.9336]
[1724909284311,1.20865757,144.26,144.23,1.06869676]
[1724909284601,29.07610389,144.31,144.25,6.9324]
[1724909284996,16.1428,144.31,144.25,6.9324]
[1724909286382,20.0,144.3,144.25,6.9324]
[1724909291004,20.0,144.3,144.21,12.93330389]
[1724909293500,20.0,144.3,144.21,28.09510389]
[1724909295698,20.0,144.3,144.21,15.1618]
[1724909296012,20.0,144.3,144.21,28.09510389]
[1724909299804,20.0,144.3,144.23,12.93330389]
[1724909302304,32.93330389,144.3,144.21,15.1618]
[1724909302623,45.12549,144.29,144.21,28.09510389]
[1724909303308,6.9313,144.28,144.21,28.09510389]
[1724909305525,96.33391004,144.29,144.18,6.4463]
[1724909305692,20.12549,144.28,144.19,3.0091802]
[1724909305892,45.12549,144.27,144.19,15.94248409]
[1724909306113,67.29269,144.27,144.18,3.0091802]
[1724909306302,20.0,144.26,144.18,17.31460788]
[1724909307320,6.9324,144.25,144.18,17.31460788]
[1724909307621,26.932,144.26,144.18,17.31460788]
[1724909308119,26.932,144.26,144.18,4.38130399]
[1724909308322,26.932,144.26,144.21,6.9341]
[1724909310322,6.9324,144.25,144.21,6.9341]
[1724909313828,26.932,144.26,144.21,6.9341]
[1724909316529,6.9324,144.25,144.21,6.9341]
[1724909321532,6.9324,144.25,144.18,3.01343264]
[1724909321730,6.9328,144.24,144.17,16.0283]
[1724909321911,6.9328,144.24,144.17,31.97503653]
[1724909322111,6.9328,144.24,144.17,28.96160389]
[1724909322637,6.9325,144.25,144.2,6.9344]
[1724909323231,6.9325,144.25,144.21,6.9343]
[1724909323432,51.9332,144.24,144.17,28.96160389]
[1724909323737,6.9332,144.24,144.17,28.96160389]
[1724909324237,6.9332,144.24,144.2,6.9347]
[1724909329937,7.05879,144.23,144.19,6.9351]
[1724909333635,6.9339,144.22,144.18,6.9357]
[1724909333845,26.9339,144.22,144.18,6.9357]
[1724909334529,12.93330389,144.21,144.16,6.9367]
[1724909334837,12.93330389,144.21,144.17,6.9362]
[1724909335042,20.0,144.2,144.17,6.9362]
[1724909335910,26.9349,144.2,144.15,6.9371]
[1724909336715,50.0,144.16,144.07,7.78162607]
[1724909337043,12.93330389,144.09,144.03,22.1551]
[1724909337427,12.93330389,144.07,144.0,3.02471832]
[1724909337819,12.93330389,144.07,143.99,15.2979]
[1724909338431,12.93330389,144.07,144.0,20.0]
[1724909339777,12.93330389,144.09,144.0,20.0]
[1724909340929,12.93330389,144.09,144.05,6.9418]
[1724909341527,16.2878,144.14,144.06,14.31842336]
[1724909341725,19.87000389,144.16,144.11,6.9391]
[1724909342145,19.87000389,144.16,144.07,1.51112025]
[1724909342545,19.87000389,144.16,144.12,6.9386]
[1724909343846,20.0,144.15,144.12,6.9386]
[1724909345428,1.20920632,144.18,144.1,12.93330389]
[1724909345628,8.14490632,144.18,144.13,6.9381]
[1724909346940,20.0,144.17,144.13,6.9381]
[1724909348651,6.9367,144.16,144.12,6.9385]
[1724909348956,26.9363,144.17,144.12,6.9385]
[1724909350028,39.86960389,144.17,144.12,6.9385]
[1724909350646,26.9363,144.17,144.12,6.9385]
[1724909354362,6.9367,144.16,144.12,6.9385]
[1724909354537,1.20920632,144.18,144.17,6.9362]
[1724909354744,6.9329,144.24,144.13,6.6118]
[1724909354944,6.9329,144.24,144.17,12.93330389]
[1724909355346,6.9325,144.25,144.2,6.9346]
[1724909355745,6.933,144.24,144.19,19.86840389]
[1724909355943,6.933,144.24,144.19,6.9351]
[1724909356143,20.0,144.23,144.19,6.9351]
[1724909358164,20.0,144.23,144.2,6.9347]
[1724909358739,20.0,144.24,144.2,6.9347]
[1724909362065,20.0,144.24,144.21,6.9342]
[1724909363167,8.13968776,144.26,144.22,6.9337]
[1724909363356,1.20768776,144.26,144.22,6.9337]
[1724909363670,6.9315,144.27,144.22,6.9337]
[1724909364855,20.0,144.26,144.22,6.9337]
[1724909365664,26.9321,144.26,144.22,6.9337]
[1724909369384,26.9321,144.26,144.21,6.9343]
[1724909370770,6.9328,144.25,144.2,6.9347]
[1724909370970,12.93330389,144.25,144.2,6.9347]
[1724909372252,6.9329,144.24,144.2,6.9347]
[1724909373175,12.93330389,144.25,144.16,15.155]
[1724909373386,6.9343,144.21,144.16,15.155]
[1724909374056,19.86720389,144.22,144.17,6.9361]
[1724909377653,6.9339,144.22,144.17,6.9361]
[1724909378070,6.9334,144.23,144.18,6.9357]
[1724909378265,20.0,144.22,144.18,6.9357]
[1724909380785,20.0,144.22,144.19,6.9351]
[1724909380956,45.0,144.24,144.19,6.9351]
[1724909381283,20.0,144.23,144.2,6.9346]
[1724909381457,20.0,144.24,144.2,6.9346]
[1724909382461,20.0,144.24,144.18,13.50262478]
[1724909382784,20.0,144.25,144.19,6.9477397]
[1724909383982,20.0,144.25,144.21,6.9339]
[1724909386263,26.9325,144.25,144.21,6.9339]
[1724909389799,20.0,144.25,144.23,6.9331]
[1724909389969,1.20746838,144.26,144.23,6.9331]
[1724909390169,1.20746838,144.26,144.22,6.9337]
[1724909390367,21.20746838,144.26,144.22,6.9337]
[1724909390885,28.13936838,144.26,144.22,6.9337]
[1724909392183,28.13936838,144.26,144.19,6.3787]
[1724909392184,6.9327,144.25,144.19,6.3787]
[1724909392396,28.13946838,144.26,144.21,6.9342]
[1724909393068,28.13946838,144.26,144.22,6.9337]
[1724909396164,28.13946838,144.26,144.21,6.9342]
[1724909398879,7.05819,144.25,144.2,6.9347]
[1724909400403,6.9324,144.25,144.21,6.9338]
[1724909401180,28.13946838,144.26,144.21,6.9338]
[1724909402197,26.932,144.26,144.21,6.9338]
[1724909402880,0.12549,144.25,144.2,6.9347]
[1724909403086,45.12549,144.25,144.2,6.9347]
[1724909403479,6.9329,144.24,144.2,6.9347]
[1724909405806,6.9329,144.24,144.19,6.9351]
[1724909409302,52.05799,144.25,144.2,6.9347]
[1724909409497,20.0,144.24,144.2,6.9347]
[1724909410084,20.0,144.24,144.21,6.9343]
[1724909410601,67.3268,144.29,144.16,15.155]
[1724909410602,6.9315,144.27,144.19,12.93330389]
[1724909410910,6.9315,144.27,144.16,15.155]
[1724909410911,20.0,144.26,144.21,12.93330389]
[1724909411901,20.0,144.26,144.19,12.93330389]
[1724909411902,26.9319,144.26,144.19,12.93330389]
[1724909412593,26.9319,144.26,144.2,1.38678931]
[1724909413099,26.9319,144.26,144.18,12.93330389]
[1724909414312,6.9324,144.25,144.19,1.38658852]
[1724909415707,20.0,144.26,144.22,6.9337]
[1724909417209,20.0,144.26,144.2,12.93330389]
[1724909417210,20.0,144.26,144.23,6.933]
[1724909417506,20.0,144.28,144.25,6.9319]
[1724909417704,6.9306,144.29,144.25,6.9319]
[1724909422610,12.93330389,144.28,144.21,15.3637]
[1724909423214,6.9315,144.27,144.21,15.3637]
[1724909424822,57.93330389,144.26,144.18,22.9792]
[1724909424995,0.12549,144.25,144.18,22.9792]
[1724909425315,45.12549,144.25,144.18,22.9792]
[1724909426300,52.05789,144.25,144.2,6.9347]
[1724909427024,20.0,144.24,144.2,6.9347]
[1724909428019,20.0,144.24,144.19,6.9352]
[1724909428020,26.933,144.24,144.19,6.9352]
[1724909429916,20.0,144.24,144.2,6.9346]
[1724909432833,6.9335,144.23,144.19,6.9352]
[1724909438339,20.0,144.24,144.2,6.9347]
[1724909440929,26.9329,144.24,144.2,6.9347]
[1724909442034,6.9335,144.23,144.19,6.9351]
[1724909443639,8.14134872,144.23,144.19,6.9351]
[1724909443935,7.05939,144.22,144.18,6.9356]
[1724909446727,8.14124872,144.23,144.19,6.9351]
[1724909451843,6.9338,144.22,144.18,6.9357]
[1724909452036,13.05879389,144.22,144.14,34.52080389]
[1724909452375,21.07485261,144.23,144.18,6.9353]
[1724909452563,20.0,144.22,144.19,6.9352]
[1724909460582,20.0,144.22,144.2,6.9347]
[1724909460863,20.0,144.24,144.21,6.9343]
[1724909461748,20.0,144.24,144.17,1.38488634]
[1724909461749,26.9329,144.24,144.2,6.9346]
[1724909462055,6.9338,144.23,144.14,21.5875]
[1724909463274,57.93330389,144.22,144.14,21.5875]
[1724909463569,20.0,144.21,144.14,21.5875]
[1724909464282,26.9346,144.21,144.17,6.936]
[1724909465053,26.9346,144.21,144.16,6.9365]
[1724909465543,6.9353,144.19,144.1,22.3644]
[1724909465762,6.9353,144.19,144.11,32.93330389]
[1724909466446,6.9353,144.19,144.15,6.937]
[1724909467654,19.86910389,144.18,144.1,22.3644]
[1724909467856,19.86890389,144.19,144.1,22.3644]
[1724909468060,20.0,144.18,144.11,12.93330389]
[1724909469064,20.0,144.18,144.12,1.38456948]
[1724909469377,20.0,144.18,144.15,6.9371]
[1724909470671,20.0,144.18,144.14,6.9375]
[1724909470881,20.0,144.18,144.1,22.3644]
[1724909470882,39.86920389,144.18,144.13,6.938]
[1724909471069,39.86920389,144.18,144.08,12.93330389]
[1724909471070,52.06209,144.17,144.08,12.93330389]
[1724909471259,52.06209,144.17,144.12,6.9386]
[1724909471450,26.9367,144.16,144.12,6.9386]
[1724909471852,6.9373,144.15,144.11,6.939]
[1724909472973,6.9373,144.15,144.1,6.9394]
[1724909473778,45.0,144.14,144.1,6.9394]
[1724909473977,51.9378,144.14,144.1,6.9394]
[1724909474849,51.9378,144.14,144.07,15.6653]
[1724909475077,51.9378,144.14,144.09,6.9399]
[1724909475078,6.9382,144.13,144.09,6.9399]
[1724909477792,6.9382,144.13,144.08,6.9404]
[1724909478072,51.9386,144.12,144.08,6.9404]
[1724909478274,6.9387,144.12,144.08,6.9405]
[1724909481169,6.9382,144.13,144.08,6.9405]
[1724909481361,20.0,144.12,144.08,6.9405]
[1724909484878,26.9387,144.12,144.08,6.9405]
[1724909485376,20.0,144.12,144.08,6.9405]
[1724909492280,20.0,144.12,144.1,6.9395]
[1724909492465,20.0,144.13,144.1,6.9395]
[1724909495177,20.0,144.13,144.09,6.9399]
[1724909499000,26.9382,144.13,144.09,6.9399]
[1724909501899,6.9386,144.12,144.08,6.9402]
[1724909502098,19.87190389,144.12,144.08,6.9402]
[1724909502595,19.87210389,144.12,144.07,6.9406]
[1724909505705,12.93330389,144.12,144.07,6.9406]
[1724909505887,26.9392,144.11,144.07,6.9406]
[1724909507183,26.9392,144.11,144.04,1.38821889]
[1724909507184,20.0,144.11,144.04,1.38821889]
[1724909507415,26.9392,144.11,144.06,6.941]
[1724909508586,41.9278,144.11,144.04,1.38821889]
[1724909508790,12.93330389,144.08,144.04,6.9425]
[1724909509303,20.0,144.07,144.04,6.9425]
[1724909509685,20.0,144.07,144.05,6.942]
[1724909509917,6.9427,144.04,143.99,6.9445]
[1724909510093,12.93330389,144.01,143.95,22.9356]
[1724909510284,74.29590556,144.06,143.92,12.93330389]
[1724909510285,12.93330389,143.99,143.92,16.3992]
[1724909510708,12.93330389,143.99,143.96,6.9462]
[1724909511884,6.9445,144.0,143.96,6.9462]
[1724909512083,12.93330389,143.99,143.96,6.9462]
[1724909513705,12.93330389,143.99,143.92,16.3992]
[1724909514805,15.267,143.98,143.88,12.93330389]
[1724909515008,15.267,143.98,143.89,45.25098]
[1724909515313,15.267,143.98,143.95,6.9464]
[1724909516099,1.20706673,144.01,143.92,12.93330389]
[1724909516316,20.0,144.01,143.98,6.9452]
[1724909517005,22.2105,144.02,143.98,6.9452]
[1724909517207,22.2105,144.02,143.93,51.36918]
[1724909517917,22.2105,144.02,143.94,1.38901061]
[1724909518400,20.0,144.01,143.94,1.38901061]
[1724909520296,20.0,144.01,143.97,6.9454]
[1724909521016,22.2105,144.02,143.98,6.9452]
[1724909521511,22.2105,144.02,143.93,51.36918]
[1724909521512,19.87730389,144.01,143.93,45.25098]
[1724909521691,19.87730389,144.01,143.93,0.25098]
[1724909522517,12.93330389,144.01,143.97,6.9457]
[1724909523815,19.87730389,144.01,143.97,6.9457]
[1724909524025,6.9444,144.0,143.95,6.9464]
[1724909524208,67.3559,144.05,143.91,15.2217]
[1724909524209,6.6168,144.11,143.99,51.73321556]
[1724909524395,6.9401,144.09,144.04,6.942]
[1724909524599,8.14599166,144.1,144.05,6.9419]
[1724909525408,20.0,144.09,144.05,6.9419]
[1724909526128,1.20629166,144.1,144.06,6.9415]
[1724909526811,8.14599166,144.1,144.05,6.9419]
[1724909527216,8.14599166,144.1,144.06,6.9415]
[1724909527526,20.0,144.09,144.06,6.9415]
[1724909528127,20.0,144.09,144.08,6.9405]
[1724909528429,21.20602351,144.12,144.08,6.9405]
[1724909528609,28.14472351,144.12,144.07,6.9409]
[1724909531403,21.20602351,144.12,144.08,6.9404]
[1724909532100,28.14462351,144.12,144.08,6.9404]
[1724909532998,28.14462351,144.12,144.05,6.9419]
[1724909532999,12.93330389,144.11,144.05,6.9419]
[1724909533324,6.94,144.1,144.06,6.9414]
[1724909533624,26.94,144.1,144.06,6.9414]
[1724909534958,26.94,144.1,144.04,6.942]
[1724909535107,26.94,144.1,144.03,1.38829882]
[1724909535825,26.94,144.1,144.05,6.9419]
[1724909538507,6.9403,144.09,144.04,6.9423]
[1724909540025,6.9406,144.08,144.04,6.9423]
[1724909540717,6.941,144.07,144.02,12.93330389]
[1724909540912,6.941,144.07,144.0,12.93330389]
[1724909541112,6.941,144.07,144.03,6.9428]
[1724909542011,6.941,144.07,144.02,6.9434]
[1724909542209,6.9425,144.04,144.0,6.9439]
[1724909543934,6.9425,144.04,143.99,6.9447]
[1724909545045,6.9421,144.05,143.99,6.9447]
[1724909546749,6.9421,144.05,144.0,6.9443]
[1724909546924,16.0602,144.07,144.0,1.3885918]
[1724909547124,23.0013,144.07,144.01,6.9438]
[1724909547320,20.0,144.06,144.01,6.9438]
[1724909548034,26.9416,144.06,144.01,6.9438]
[1724909550326,20.0,144.06,144.02,6.9433]
[1724909550524,8.14474125,144.08,144.02,8.33139896]
[1724909552737,6.9411,144.07,144.02,8.33139896]
[1724909554151,1.20374125,144.08,144.02,8.33139896]
[1724909554335,21.20374125,144.08,144.02,8.33139896]
[1724909555250,6.9411,144.07,144.02,8.33139896]
[1724909558740,6.9411,144.07,144.02,6.943]
[1724909559859,28.14444125,144.08,144.02,6.943]
[1724909560155,6.9415,144.06,144.02,8.33120617]
[1724909561938,6.9415,144.06,144.02,1.38820617]
[1724909563851,21.20374125,144.08,144.03,6.9429]
[1724909564046,21.20374125,144.08,144.02,1.38820617]
[1724909564349,0.02751877,144.03,144.02,8.33160617]
[1724909565162,21.20374125,144.08,144.05,6.9419]
[1724909565163,1.20374125,144.08,144.05,6.9419]
[1724909565457,6.94,144.1,144.04,6.9423]
[1724909565762,6.9402,144.09,144.04,8.33031341]
[1724909566667,6.9402,144.09,144.04,6.9423]
[1724909566967,6.9406,144.08,144.03,6.9428]
[1724909568353,6.9402,144.09,144.03,6.9428]
[1724909568556,6.941,144.08,144.03,6.9428]
[1724909568756,6.941,144.08,144.03,7.38597498]
[1724909568958,6.9412,144.07,144.03,0.44317498]
[1724909569760,6.9415,144.06,144.02,15.0058]
[1724909569946,6.9422,144.05,144.01,6.1597]
[1724909570145,12.93330389,144.07,143.99,22.2568]
[1724909570366,20.0,144.06,143.99,15.3121]
[1724909570875,6.943,144.03,143.99,15.3121]
[1724909576280,12.93330389,144.05,143.97,6.5666]
[1724909576478,6.944,144.01,143.97,6.5666]
[1724909579357,6.9436,144.02,143.98,1.38903535]
[1724909579674,6.9446,144.0,143.96,13.05879389]
[1724909579875,12.93330389,144.05,143.97,0.25098]
[1724909580173,20.0,144.04,143.97,0.25098]
[1724909580571,6.9435,144.02,143.97,7.19638]
[1724909580779,6.9435,144.02,143.97,6.9454]
[1724909581678,6.9435,144.02,143.98,1.38654451]
[1724909581878,6.943,144.03,143.99,1.38880907]
[1724909582562,6.9436,144.02,143.98,6.9454]
[1724909583857,6.944,144.01,143.97,1.01753034]
[1724909584257,6.9445,144.0,143.97,1.01753034]
[1724909584475,6.9445,144.0,143.96,1.01753034]
[1724909585185,6.945,143.99,143.96,1.01753034]
[1724909587780,6.9455,143.98,143.95,17.64680331]
[1724909588483,6.9455,143.98,143.95,16.6286]
[1724909592081,1.20274809,143.99,143.95,16.6286]
[1724909592259,6.9449,143.99,143.96,1.38919346]
[1724909592582,6.9446,144.0,143.96,1.38919346]
[1724909593081,1.20262782,144.02,143.96,1.38919346]
[1724909593082,6.945,143.99,143.96,1.38919346]
[1724909595179,6.944,144.01,143.97,6.9457]
[1724909595389,6.944,144.01,143.96,8.33509346]
[1724909595868,6.9445,144.0,143.96,8.33509346]
[1724909596273,6.9445,144.0,143.96,1.38919346]
[1724909596873,6.9449,143.99,143.96,1.38919346]
[1724909598879,6.9449,143.99,143.95,18.0177065]
[1724909599091,30.29340389,144.01,143.95,18.0177065]
[1724909599391,6.9455,143.98,143.95,18.0177065]
[1724909599772,6.9455,143.98,143.95,16.6286]
[1724909600271,6.946,143.97,143.95,16.6286]
[1724909600589,6.946,143.97,143.94,1.38921446]
[1724909602165,15.8561,143.93,143.83,6.2298]
[1724909602368,6.9521,143.84,143.81,16.2318]
[1724909602893,12.93330389,143.83,143.81,16.2318]
[1724909603186,19.88610389,143.83,143.79,6.4525]
[1724909604489,6.9528,143.83,143.79,7.84326144]
[1724909604877,19.88550389,143.84,143.79,7.84326144]
[1724909605486,19.88550389,143.84,143.79,6.4525]
[1724909608378,19.88550389,143.84,143.78,7.77202923]
[1724909608577,6.9527,143.83,143.79,6.9545]
[1724909609778,19.88550389,143.84,143.79,6.9545]
[1724909610265,2.85105825,143.92,143.79,12.93330389]
[1724909610588,34.7329,143.96,143.79,12.93330389]
[1724909610589,6.9479,143.93,143.87,19.88390389]
[1724909610788,6.9479,143.93,143.88,8.33983079]
[1724909611494,6.9479,143.93,143.88,6.95]
[1724909613176,15.2533,143.97,143.93,6.9477]
[1724909613385,6.9452,143.99,143.93,6.9477]
[1724909613694,6.9455,143.98,143.93,6.9477]
[1724909615492,6.946,143.97,143.92,6.9482]
[1724909619169,1.20868834,143.98,143.95,6.9466]
[1724909619879,1.20868834,143.98,143.94,6.9472]
[1724909620074,21.20868834,143.98,143.94,6.9472]
[1724909621305,28.15408834,143.98,143.93,6.9477]
[1724909622177,28.15408834,143.98,143.94,6.9472]
[1724909627287,28.15408834,143.98,143.93,6.9477]
[1724909630982,6.9459,143.97,143.93,6.9477]
[1724909638509,6.9459,143.97,143.89,22.7668]
[1724909640306,6.9459,143.97,143.93,6.9477]
[1724909640507,16.2312,144.01,143.97,6.9455]
[1724909640813,23.1753,144.01,143.97,6.9455]
[1724909641417,13.1561,144.02,143.97,6.9455]
[1724909641592,13.00763016,144.01,143.97,6.9455]
[1724909641794,6.9452,143.99,143.92,13.00763016]
[1724909642008,6.9452,143.99,143.9,13.00763016]
[1724909642208,19.95283016,143.99,143.9,13.00763016]
[1724909642415,6.9459,143.97,143.93,6.9477]
[1724909643412,6.9454,143.98,143.93,6.9477]
[1724909643920,6.9463,143.96,143.89,22.7668]
[1724909644207,6.946,143.97,143.92,6.9482]
[1724909646118,6.9464,143.96,143.92,6.9482]
[1724909646995,6.9469,143.95,143.9,6.9489]
[1724909647292,6.9469,143.95,143.91,6.9487]
[1724909648395,6.9464,143.96,143.91,6.9487]
[1724909650807,7.07169,143.97,143.92,6.9479]
[1724909651112,6.9462,143.97,143.92,6.9479]
[1724909651514,6.9462,143.97,143.93,6.9478]
[1724909653411,6.9455,143.98,143.93,6.9478]
[1724909653711,20.0,143.97,143.93,6.9478]
[1724909654087,20.0,143.97,143.89,1.38962186]
[1724909654315,20.0,143.98,143.95,6.9467]
[1724909655709,26.9455,143.98,143.94,6.9472]
[1724909660400,6.946,143.97,143.93,6.9477]
[1724909665711,26.9454,143.98,143.94,6.9472]
[1724909666024,20.0,143.98,143.94,6.9472]
[1724909668230,6.9443,144.01,143.93,13.00600377]
[1724909669213,6.9443,144.01,143.97,6.9458]
[1724909669612,20.0,144.0,143.97,6.9458]
[1724909670298,20.0,144.0,143.96,6.9462]
[1724909670499,26.9446,144.0,143.96,6.9462]
[1724909672025,13.00600377,143.98,143.88,21.43]
[1724909672208,20.0,143.97,143.88,21.43]
[1724909673216,6.9464,143.96,143.92,6.9481]
[1724909675607,26.946,143.97,143.92,6.9481]
[1724909675805,26.946,143.97,143.93,6.9476]
[1724909676815,26.946,143.97,143.92,6.9481]
[1724909682732,13.00600377,143.96,143.91,6.9486]
[1724909683233,19.95270377,143.96,143.92,6.9482]
[1724909688841,20.0,143.97,143.95,6.9468]
[1724909689044,15.5543,143.98,143.95,6.9468]
[1724909689242,13.00600377,143.99,143.96,6.9463]
[1724909691732,13.00600377,143.99,143.95,6.9467]
[1724909696830,20.0,143.98,143.9,13.00600377]
[1724909697043,26.9455,143.98,143.88,34.43600377]
[1724909697240,26.9455,143.98,143.89,0.25098]
[1724909698129,26.9455,143.98,143.94,6.9473]
[1724909702652,20.0,143.98,143.94,6.9473]
[1724909703152,20.0,143.98,143.93,6.9476]
[1724909703346,19.95220377,143.97,143.93,6.9476]
[1724909703737,6.9468,143.95,143.91,6.9486]
[1724909704355,6.9464,143.96,143.92,6.9482]
[1724909706050,13.00600377,143.95,143.92,6.9482]
[1724909709967,19.95280377,143.95,143.91,6.9486]
[1724909710459,6.9473,143.94,143.9,6.9491]
[1724909710644,13.00600377,143.93,143.9,6.9491]
[1724909714356,19.95300377,143.95,143.9,6.9491]
[1724909714656,15.7035,143.97,143.95,6.9467]
[1724909714841,19.95100377,143.99,143.95,6.9467]
[1724909716238,20.0,143.98,143.95,6.9467]
[1724909716440,20.0,143.98,143.94,6.9471]
[1724909717168,26.9454,143.98,143.94,6.9471]
[1724909717640,19.95190377,143.97,143.9,6.664]
[1724909717840,13.00600377,143.95,143.89,15.8634]
[1724909718051,19.95290377,143.95,143.86,35.56640377]
[1724909718671,13.00600377,143.93,143.86,22.5604]
[1724909718963,19.95410377,143.93,143.88,6.9498]
[1724909719765,19.95410377,143.93,143.89,6.9496]
[1724909719944,13.00600377,143.93,143.9,6.9491]
[1724909720654,51.9474,143.94,143.91,6.9486]
[1724909720655,45.0,143.94,143.91,6.9486]
[1724909720971,22.57499,143.96,143.92,6.9482]
[1724909721267,20.0,143.95,143.91,6.9486]
[1724909723251,58.49391508,143.99,143.95,6.9468]
[1724909723252,6.4699,143.99,143.95,6.9468]
[1724909723457,15.383,144.0,143.96,6.9463]
[1724909723763,6.3002,144.02,143.98,6.9453]
[1724909723970,13.00600377,144.03,143.98,6.9453]
[1724909724143,13.00600377,144.03,143.99,6.9447]
[1724909724543,19.94900377,144.03,143.98,6.9453]
[1724909724844,13.00600377,144.01,143.97,6.9458]
[1724909725043,13.00600377,144.01,143.96,6.9463]
[1724909726065,13.00600377,144.01,143.97,6.9456]
[1724909726451,22.3256,144.04,143.99,6.9448]
[1724909726647,33.00600377,144.03,143.99,6.9448]
[1724909727479,13.00600377,144.01,143.98,6.9453]
[1724909727855,13.00600377,144.01,143.97,6.9458]
[1724909729375,19.95000377,144.01,143.96,6.9459]
[1724909729759,13.00600377,144.01,143.97,6.9458]
[1724909729966,13.00600377,144.01,143.98,6.9453]
[1724909731879,13.00600377,144.01,143.97,6.9457]
[1724909735957,6.9435,144.02,143.97,6.9457]
[1724909736159,19.94950377,144.02,143.97,6.9457]
[1724909740967,15.383,144.04,144.0,6.9442]
[1724909741587,22.3255,144.04,144.0,6.9442]
[1724909743780,22.3255,144.04,143.99,6.9447]
[1724909744085,13.00600377,144.03,143.98,6.945]
[1724909744270,20.0,144.02,143.98,6.945]
[1724909744872,20.0,144.02,143.94,6.3612]
[1724909744873,13.00600377,144.01,143.97,6.9458]
[1724909745187,13.00600377,144.01,143.96,6.946]
[1724909745370,20.0,144.0,143.96,6.946]
[1724909745564,6.945,143.99,143.95,6.9467]
[1724909745875,19.95100377,143.99,143.94,6.9472]
[1724909746584,19.95100377,143.99,143.95,6.9467]
[1724909747760,20.0,144.0,143.96,6.9459]
[1724909748788,13.00600377,144.01,143.97,6.9455]
[1724909749295,19.94900377,144.03,143.93,14.39405627]
[1724909749464,19.94900377,144.03,143.94,0.25098]
[1724909750287,19.94900377,144.03,143.99,6.9448]
[1724909750884,20.0,144.02,143.99,6.9448]
[1724909751475,26.9435,144.02,143.98,6.9453]
[1724909752184,26.9435,144.02,143.93,13.00600377]
[1724909752185,20.0,144.02,143.93,13.00600377]
[1724909752381,20.0,144.02,143.97,6.9455]
[1724909752382,26.9436,144.02,143.97,6.9455]
[1724909752689,26.9436,144.02,143.93,13.00600377]
[1724909752690,20.0,144.02,143.99,6.9447]
[1724909753163,20.0,144.02,143.98,6.9452]
[1724909754488,20.0,144.02,144.0,6.9442]
[1724909754676,20.0,144.03,144.0,6.9442]
[1724909756492,15.383,144.04,144.0,6.9442]
[1724909758684,6.9421,144.05,144.01,6.9438]
[1724909758987,20.0,144.04,144.01,6.9438]
[1724909761001,20.0,144.05,144.01,6.9438]
[1724909762299,15.3794,144.08,144.03,6.9429]
[1724909762594,22.3199,144.08,144.04,6.9424]
[1724909762798,6.9405,144.08,144.04,6.9424]
[1724909763092,6.3558,144.09,144.06,6.9413]
[1724909763409,13.00600377,144.1,144.01,13.00600377]
[1724909763410,6.9398,144.1,144.05,6.9416]
[1724909763703,19.94580377,144.1,144.05,6.9416]
[1724909764903,20.0,144.09,144.05,6.9416]
[1724909766299,6.9398,144.1,144.06,6.9414]
[1724909770800,28.90060377,144.11,144.02,16.1772]
[1724909771010,28.90060377,144.11,144.04,6.9423]
[1724909771011,19.94640377,144.09,144.04,6.9423]
[1724909775086,6.9404,144.09,144.05,6.9419]